[Event "FIDE Open World Rapid 2024"]
[Site "New York"]
[Date "2024.12.27"]
[Round "7.34"]
[White "Svane, Frederik"]
[Black "Bok, Benjamin"]
[Result "1-0"]
[ECO "C50"]
[WhiteElo "2668"]
[BlackElo "2593"]
[Annotator "ChessBase"]
[PlyCount "111"]
[EventDate "2024.12.14"]
[EventType "swiss"]
[EventCountry "USA"]
[SourceTitle "playchess.com"]
[Source "ChessBase"]
[SourceQuality "1"]
[TimeControl "900+10"]

1. e4 {[%emt 0:00:02]} e5 {[%emt 0:00:16]} 2. Nf3 {[%emt 0:00:02]} Nc6 {[%emt 0:00:02]} 3. Bc4 {[%emt 0:00:01]} Bc5 {[%emt 0:00:05]} 4. d3 {[%emt 0:00:10]} Nf6 {[%emt 0:00:13]} 5. a4 {[%emt 0:00:01]} O-O {[%emt 0:01:52]} 6. Bg5 {[%emt 0:00:43]} Be7 {[%emt 0:01:18]} 7. O-O {[%emt 0:00:05]} d6 {[%emt 0:00:07]} 8. a5 {[%emt 0:00:41]} h6 {[%emt 0:02:35]} 9. Bxf6 {[%emt 0:02:00]} Bxf6 {[%emt 0:00:02]} 10. h3 {[%emt 0:00:02]} Nb8 {[%emt 0:03:42]} 11. Re1 {[%emt 0:00:32]} c6 {[%emt 0:00:05]} 12. Nc3 {[%emt 0:00:46]} Nd7 {[%emt 0:00:04]} 13. Qd2 {[%emt 0:00:25]} Rb8 {[%emt 0:00:20]} 14. b4 {[%emt 0:00:38]} a6 {[%emt 0:01:01]} 15. Ne2 {[%emt 0:03:18]} Kh7 {[%emt 0:00:06]} 16. Ng3 {[%emt 0:00:28]} g6 {[%emt 0:00:04]} 17. c3 {[%emt 0:00:01]} Bg7 {[%emt 0:00:48]} 18. d4 {[%emt 0:00:08]} exd4 {[%emt 0:00:57]} 19. cxd4 {[%emt 0:00:01]} c5 {[%emt 0:01:34]} 20. Rad1 {[%emt 0:04:34]} b5 {[%emt 0:00:56]} 21. Bd5 {[%emt 0:00:41]} c4 {[%emt 0:01:52]} 22. e5 {[%emt 0:00:05]} Qc7 {[%emt 0:00:02]} 23. Qf4 {[%emt 0:02:31]} dxe5 {[%emt 0:00:03]} 24. dxe5 {[%emt 0:00:04]} f6 {[%emt 0:00:41]} 25. Ne4 {[%emt 0:00:59]} Nxe5 {[%emt 0:00:21]} 26. Nxe5 {[%emt 0:00:10]} fxe5 {[%emt 0:00:06]} 27. Qh4 {[%emt 0:00:07]} Rf4 {[%emt 0:00:16]} 28. Qg3 {[%emt 0:00:16]} Bf5 {[%emt 0:00:09]} 29. Nc5 {[%emt 0:00:01]} Qc8 {[%emt 0:00:10]} 30. Be4 {[%emt 0:00:13]} Bxe4 {[%emt 0:00:09]} 31. Nxe4 {[%emt 0:00:01]} Qf5 {[%emt 0:00:07]} 32. Nc5 {[%emt 0:00:18]} e4 {[%emt 0:00:09]} 33. Ne6 {[%emt 0:00:10]} g5 {[%emt 0:00:16]} 34. Nxf4 {[%emt 0:00:12]} gxf4 {[%emt 0:00:02]} 35. Qg4 {[%emt 0:00:04]} Qxg4 {[%emt 0:00:16]} 36. hxg4 {[%emt 0:00:01]} Re8 {[%emt 0:00:08]} 37. Rd7 {[%emt 0:00:21]} Kg8 {[%emt 0:00:12]} 38. Kf1 {[%emt 0:00:25]} Bc3 {[%emt 0:00:06]} 39. Rb1 {[%emt 0:00:01]} e3 {[%emt 0:00:11]} 40. fxe3 {[%emt 0:00:08]} fxe3 {[%emt 0:00:04]} 41. Ke2 {[%emt 0:00:01]} Bd2 {[%emt 0:00:19]} 42. Rf1 {[%emt 0:00:05]} Bxb4 {[%emt 0:00:06]} 43. Rf6 {[%emt 0:00:02]} Bf8 {[%emt 0:00:16]} 44. Rxa6 {[%emt 0:00:17]} b4 {[%emt 0:00:11]} 45. Rb6 {[%emt 0:00:08]} Rc8 {[%emt 0:00:08]} 46. a6 {[%emt 0:00:31]} c3 {[%emt 0:00:02]} 47. a7 {[%emt 0:00:10]} c2 {[%emt 0:00:16]} 48. Rg6+ {[%emt 0:00:03]} Kh8 {[%emt 0:00:07]} 49. Rc6 {[%emt 0:00:02]} Rxc6 {[%emt 0:00:17]} 50. a8=Q {[%emt 0:00:02]} Rf6 {[%emt 0:00:09]} 51. Rc7 {[%emt 0:00:29]} b3 {[%emt 0:00:10]} 52. Qb8 {[%emt 0:00:01]} Rf2+ {[%emt 0:00:11]} 53. Kxe3 {[%emt 0:00:02]} Rf1 {[%emt 0:00:02]} 54. Qxb3 {[%emt 0:00:08]} c1=Q+ {[%emt 0:00:12]} 55. Rxc1 {[%emt 0:00:02]} Rxc1 {[%emt 0:00:01]} 56. Qb2+ {[%emt 0:00:01]} 1-0

[Event "FIDE Open World Rapid 2024"]
[Site "New York"]
[Date "2024.12.27"]
[Round "7.34"]
[White "Ansat, Aldiyar"]
[Black "Chanda, Sandipan"]
[Result "1-0"]
[ECO "B55"]
[WhiteElo "2479"]
[BlackElo "2480"]
[Annotator "ChessBase"]
[PlyCount "95"]
[EventDate "2024.12.14"]
[EventType "swiss"]
[EventCountry "USA"]
[SourceTitle "playchess.com"]
[Source "ChessBase"]
[SourceQuality "1"]
[TimeControl "900+10"]

1. e4 {[%emt 0:00:01]} c5 {[%emt 0:00:01]} 2. Nf3 {[%emt 0:00:02]} d6 {[%emt 0:00:01]} 3. d4 {[%emt 0:00:08]} cxd4 {[%emt 0:00:02]} 4. Nxd4 {[%emt 0:00:01]} Nf6 {[%emt 0:00:02]} 5. Bd3 {[%emt 0:00:10]} Nc6 {[%emt 0:00:03]} 6. Be3 {[%emt 0:00:03]} g6 {[%emt 0:00:11]} 7. h3 {[%emt 0:00:14]} Bg7 {[%emt 0:00:03]} 8. c4 {[%emt 0:00:03]} Ng4 {[%emt 0:01:57]} 9. hxg4 {[%emt 0:00:01]} Bxd4 {[%emt 0:00:24]} 10. Bxd4 {[%emt 0:00:05]} Nxd4 {[%emt 0:00:01]} 11. Nc3 {[%emt 0:00:02]} e5 {[%emt 0:00:26]} 12. f3 {[%emt 0:00:30]} Be6 {[%emt 0:00:06]} 13. Qd2 {[%emt 0:00:22]} Qa5 {[%emt 0:00:29]} 14. Ne2 {[%emt 0:07:07]} Qxd2+ {[%emt 0:02:04]} 15. Kxd2 {[%emt 0:00:02]} Nxe2 {[%emt 0:00:05]} 16. Bxe2 {[%emt 0:00:02]} Ke7 {[%emt 0:01:15]} 17. g5 {[%emt 0:01:14]} a5 {[%emt 0:00:32]} 18. g3 {[%emt 0:00:50]} Rac8 {[%emt 0:01:43]} 19. b3 {[%emt 0:00:11]} f6 {[%emt 0:00:50]} 20. f4 {[%emt 0:00:55]} exf4 {[%emt 0:00:37]} 21. gxf4 {[%emt 0:01:39]} fxg5 {[%emt 0:00:13]} 22. fxg5 {[%emt 0:00:01]} Rc5 {[%emt 0:00:03]} 23. Rag1 {[%emt 0:00:02]} Re5 {[%emt 0:00:10]} 24. Ke3 {[%emt 0:01:41]} Bd7 {[%emt 0:00:02]} 25. Rh4 {[%emt 0:00:18]} Bc6 {[%emt 0:00:12]} 26. Bf3 {[%emt 0:00:42]} Kf7 {[%emt 0:00:06]} 27. a3 {[%emt 0:00:21]} b5 {[%emt 0:00:22]} 28. Be2 {[%emt 0:00:15]} Kg7 {[%emt 0:00:52]} 29. Rd1 {[%emt 0:00:24]} Rhe8 {[%emt 0:00:53]} 30. Rxd6 {[%emt 0:00:14]} Bxe4 {[%emt 0:00:31]} 31. Kd4 {[%emt 0:00:57]} Bf5 {[%emt 0:00:26]} 32. Bd3 {[%emt 0:00:22]} Bxd3 {[%emt 0:00:38]} 33. Rd7+ {[%emt 0:00:01]} R5e7 {[%emt 0:00:51]} 34. Rxe7+ {[%emt 0:00:01]} Rxe7 {[%emt 0:00:00]} 35. Kxd3 {[%emt 0:00:01]} Re5 {[%emt 0:00:32]} 36. Rg4 {[%emt 0:00:12]} a4 {[%emt 0:01:22]} 37. cxb5 {[%emt 0:01:15]} Rxb5 {[%emt 0:00:04]} 38. b4 {[%emt 0:00:02]} Rf5 {[%emt 0:00:19]} 39. Rg3 {[%emt 0:00:09]} Rf4 {[%emt 0:01:16]} 40. b5 {[%emt 0:00:13]} h6 {[%emt 0:00:24]} 41. b6 {[%emt 0:00:27]} hxg5 {[%emt 0:00:28]} 42. Rxg5 {[%emt 0:00:05]} Rf8 {[%emt 0:00:19]} 43. Kc4 {[%emt 0:00:11]} Kh6 {[%emt 0:00:30]} 44. Rc5 {[%emt 0:00:18]} g5 {[%emt 0:00:12]} 45. Kb5 {[%emt 0:00:13]} g4 {[%emt 0:00:10]} 46. b7 {[%emt 0:00:07]} Rb8 {[%emt 0:00:51]} 47. Kb6 {[%emt 0:00:02]} g3 {[%emt 0:00:02]} 48. Ka7 {[%emt 0:00:05]} 1-0

[Event "FIDE Open World Rapid 2024"]
[Site "New York"]
[Date "2024.12.27"]
[Round "7.35"]
[White "Antipov, Mikhail Al."]
[Black "Zhalmakhanov, Ramazan"]
[Result "1-0"]
[ECO "C55"]
[WhiteElo "2594"]
[BlackElo "2486"]
[Annotator "ChessBase"]
[PlyCount "61"]
[EventDate "2024.12.14"]
[EventType "swiss"]
[EventCountry "USA"]
[SourceTitle "playchess.com"]
[Source "ChessBase"]
[SourceQuality "1"]
[TimeControl "900+10"]

1. e4 {[%emt 0:00:01]} e5 {[%emt 0:00:02]} 2. Nf3 {[%emt 0:00:01]} Nc6 {[%emt 0:00:02]} 3. Bc4 {[%emt 0:00:01]} Nf6 {[%emt 0:00:02]} 4. d3 {[%emt 0:00:01]} h6 {[%emt 0:00:02]} 5. O-O {[%emt 0:00:25]} d6 {[%emt 0:00:03]} 6. a4 {[%emt 0:00:07]} g6 {[%emt 0:00:02]} 7. a5 {[%emt 0:00:04]} Bg7 {[%emt 0:00:02]} 8. a6 {[%emt 0:00:02]} b6 {[%emt 0:00:01]} 9. Bb5 {[%emt 0:00:01]} Bd7 {[%emt 0:00:02]} 10. c4 {[%emt 0:00:02]} O-O {[%emt 0:00:05]} 11. Nc3 {[%emt 0:00:02]} Ne7 {[%emt 0:00:23]} 12. Bxd7 {[%emt 0:00:03]} Qxd7 {[%emt 0:00:12]} 13. d4 {[%emt 0:01:13]} exd4 {[%emt 0:00:31]} 14. Nxd4 {[%emt 0:00:02]} c6 {[%emt 0:00:26]} 15. Re1 {[%emt 0:00:19]} Ng4 {[%emt 0:01:41]} 16. h3 {[%emt 0:09:00]} Ne5 {[%emt 0:00:03]} 17. b3 {[%emt 0:00:01]} f5 {[%emt 0:00:21]} 18. f4 {[%emt 0:00:04]} Nf7 {[%emt 0:00:06]} 19. Ra2 {[%emt 0:00:03]} fxe4 {[%emt 0:01:03]} 20. Nxe4 {[%emt 0:00:12]} d5 {[%emt 0:00:16]} 21. Ng3 {[%emt 0:01:08]} Nd8 {[%emt 0:02:15]} 22. Rae2 {[%emt 0:00:19]} Rf7 {[%emt 0:00:09]} 23. Nf3 {[%emt 0:01:12]} Qd6 {[%emt 0:00:56]} 24. Ne5 {[%emt 0:00:33]} Rf8 {[%emt 0:00:21]} 25. Kh2 {[%emt 0:01:32]} Rc8 {[%emt 0:00:23]} 26. c5 {[%emt 0:00:08]} Qc7 {[%emt 0:01:21]} 27. Nd7 {[%emt 0:00:26]} Nf5 {[%emt 0:03:58]} 28. Nxf8 {[%emt 0:00:02]} Nxg3 {[%emt 0:00:10]} 29. Re7 {[%emt 0:00:10]} Qb8 {[%emt 0:00:01]} 30. Nd7 {[%emt 0:00:08]} Qa8 {[%emt 0:00:03]} 31. Rxg7+ {[%emt 0:00:24]} 1-0

[Event "FIDE Open World Rapid 2024"]
[Site "New York"]
[Date "2024.12.27"]
[Round "7.35"]
[White "Dlugy, Maxim"]
[Black "Hungaski, Robert"]
[Result "1-0"]
[ECO "A80"]
[WhiteElo "2514"]
[BlackElo "2477"]
[Annotator "ChessBase"]
[PlyCount "78"]
[EventDate "2024.12.14"]
[EventType "swiss"]
[EventCountry "USA"]
[SourceTitle "playchess.com"]
[Source "ChessBase"]
[SourceQuality "1"]
[TimeControl "900+10"]

1. d4 {[%emt 0:00:01]} e6 {[%emt 0:00:01]} 2. Bf4 {[%emt 0:00:01]} f5 {[%emt 0:00:20]} 3. e3 {[%emt 0:00:02]} Nf6 {[%emt 0:00:02]} 4. Nf3 {[%emt 0:00:22]} b6 {[%emt 0:00:16]} 5. Nbd2 {[%emt 0:00:05]} Bb7 {[%emt 0:00:03]} 6. Bd3 {[%emt 0:00:06]} Be7 {[%emt 0:01:26]} 7. c3 {[%emt 0:00:10]} O-O {[%emt 0:00:12]} 8. h3 {[%emt 0:00:02]} Ne4 {[%emt 0:01:02]} 9. Rg1 {[%emt 0:00:02]} Bd6 {[%emt 0:03:40]} 10. Bxd6 {[%emt 0:01:33]} cxd6 {[%emt 0:00:20]} 11. g4 {[%emt 0:00:25]} d5 {[%emt 0:01:16]} 12. gxf5 {[%emt 0:02:49]} Rxf5 {[%emt 0:00:57]} 13. Qc2 {[%emt 0:03:44]} Qf6 {[%emt 0:00:40]} 14. Ne5 {[%emt 0:02:16]} Rxe5 {[%emt 0:02:17]} 15. Bxe4 {[%emt 0:00:52]} Rxe4 {[%emt 0:00:33]} 16. Nxe4 {[%emt 0:00:03]} dxe4 {[%emt 0:00:02]} 17. O-O-O {[%emt 0:00:04]} b5 {[%emt 0:01:42]} 18. Rg4 {[%emt 0:00:20]} Bd5 {[%emt 0:00:08]} 19. Rdg1 {[%emt 0:00:02]} Nc6 {[%emt 0:00:07]} 20. Rxg7+ {[%emt 0:01:48]} Qxg7 {[%emt 0:00:02]} 21. Rxg7+ {[%emt 0:00:02]} Kxg7 {[%emt 0:00:01]} 22. Qe2 {[%emt 0:00:00]} a6 {[%emt 0:03:28]} 23. Qg4+ {[%emt 0:00:03]} Kf7 {[%emt 0:00:11]} 24. Qh5+ {[%emt 0:00:32]} Ke7 {[%emt 0:00:01]} 25. Qxh7+ {[%emt 0:00:02]} Kd6 {[%emt 0:00:01]} 26. Qg7 {[%emt 0:00:20]} Ne7 {[%emt 0:00:05]} 27. h4 {[%emt 0:00:20]} Nf5 {[%emt 0:00:18]} 28. Qe5+ {[%emt 0:00:03]} Kc6 {[%emt 0:00:01]} 29. b3 {[%emt 0:00:17]} d6 {[%emt 0:00:08]} 30. Qf6 {[%emt 0:00:02]} Rg8 {[%emt 0:00:16]} 31. h5 {[%emt 0:00:47]} Rg1+ {[%emt 0:00:25]} 32. Kb2 {[%emt 0:00:01]} Rg2 {[%emt 0:00:17]} 33. Ka3 {[%emt 0:00:03]} a5 {[%emt 0:00:09]} 34. h6 {[%emt 0:00:31]} Rh2 {[%emt 0:00:05]} 35. Qd8 {[%emt 0:00:04]} b4+ {[%emt 0:00:04]} 36. cxb4 {[%emt 0:00:13]} axb4+ {[%emt 0:00:01]} 37. Kxb4 {[%emt 0:00:01]} Rxh6 {[%emt 0:00:11]} 38. Ka5 {[%emt 0:00:19]} Kb7 {[%emt 0:00:18]} 39. Qd7+ {[%emt 0:00:10]} Kb8 {[%emt 0:00:34]} 1-0

[Event "FIDE Open World Rapid 2024"]
[Site "New York"]
[Date "2024.12.27"]
[Round "7.36"]
[White "Shimanov, Aleksandr"]
[Black "Ohanyan, Emin"]
[Result "1/2-1/2"]
[ECO "A06"]
[WhiteElo "2593"]
[BlackElo "2514"]
[Annotator "ChessBase"]
[PlyCount "140"]
[EventDate "2024.12.14"]
[EventType "swiss"]
[EventCountry "USA"]
[SourceTitle "playchess.com"]
[Source "ChessBase"]
[SourceQuality "1"]
[TimeControl "900+10"]

1. Nf3 {[%emt 0:00:03]} d5 {[%emt 0:01:04]} 2. b3 {[%emt 0:00:03]} Nf6 {[%emt 0:00:14]} 3. Bb2 {[%emt 0:00:02]} Bf5 {[%emt 0:00:03]} 4. d3 {[%emt 0:00:10]} e6 {[%emt 0:00:15]} 5. g3 {[%emt 0:00:09]} h6 {[%emt 0:00:02]} 6. Bg2 {[%emt 0:00:04]} Bh7 {[%emt 0:00:06]} 7. O-O {[%emt 0:00:08]} c5 {[%emt 0:00:14]} 8. Ne5 {[%emt 0:01:52]} Be7 {[%emt 0:00:26]} 9. Nd2 {[%emt 0:00:11]} O-O {[%emt 0:00:06]} 10. e4 {[%emt 0:00:10]} Nfd7 {[%emt 0:01:38]} 11. Ng4 {[%emt 0:07:40]} d4 {[%emt 0:02:51]} 12. f4 {[%emt 0:00:04]} Nc6 {[%emt 0:00:06]} 13. e5 {[%emt 0:00:14]} Nb6 {[%emt 0:00:14]} 14. Bxc6 {[%emt 0:00:31]} bxc6 {[%emt 0:00:02]} 15. Qe2 {[%emt 0:00:29]} Nd5 {[%emt 0:01:05]} 16. Nc4 {[%emt 0:00:13]} Nb6 {[%emt 0:00:01]} 17. Nd2 {[%emt 0:00:41]} Nd5 {[%emt 0:00:02]} 18. Nc4 {[%emt 0:00:02]} Nb6 {[%emt 0:00:02]} 19. Nf2 {[%emt 0:00:01]} Qd7 {[%emt 0:01:09]} 20. Ba3 {[%emt 0:00:21]} Nxc4 {[%emt 0:02:26]} 21. bxc4 {[%emt 0:00:02]} Qc7 {[%emt 0:01:26]} 22. Rfb1 {[%emt 0:00:24]} Rab8 {[%emt 0:01:13]} 23. Rb3 {[%emt 0:00:08]} a5 {[%emt 0:00:08]} 24. Qd2 {[%emt 0:02:42]} a4 {[%emt 0:00:08]} 25. Rbb1 {[%emt 0:00:20]} Rxb1+ {[%emt 0:01:00]} 26. Rxb1 {[%emt 0:00:01]} Rb8 {[%emt 0:00:02]} 27. Qc1 {[%emt 0:01:56]} Rxb1 {[%emt 0:00:34]} 28. Qxb1 {[%emt 0:00:01]} Bg6 {[%emt 0:00:01]} 29. Kf1 {[%emt 0:00:28]} Kh7 {[%emt 0:00:18]} 30. Qe1 {[%emt 0:00:25]} Qb8 {[%emt 0:00:38]} 31. Kg2 {[%emt 0:00:06]} Qb6 {[%emt 0:00:39]} 32. Ne4 {[%emt 0:00:24]} Bxe4+ {[%emt 0:00:28]} 33. Qxe4+ {[%emt 0:00:02]} g6 {[%emt 0:00:01]} 34. Qe1 {[%emt 0:00:01]} h5 {[%emt 0:01:04]} 35. Kf3 {[%emt 0:00:05]} Kg7 {[%emt 0:00:01]} 36. Ke2 {[%emt 0:00:15]} Kg8 {[%emt 0:00:30]} 37. Qc1 {[%emt 0:00:08]} Kg7 {[%emt 0:00:37]} 38. Qb2 {[%emt 0:00:02]} Qa5 {[%emt 0:00:00]} 39. Qb1 {[%emt 0:00:03]} Qc3 {[%emt 0:00:12]} 40. Bc1 {[%emt 0:00:06]} Qb4 {[%emt 0:00:06]} 41. Qb2 {[%emt 0:00:31]} Bd8 {[%emt 0:00:11]} 42. a3 {[%emt 0:00:36]} Qxb2 {[%emt 0:00:11]} 43. Bxb2 {[%emt 0:00:01]} g5 {[%emt 0:00:27]} 44. Kf3 {[%emt 0:00:18]} g4+ {[%emt 0:00:09]} 45. Ke2 {[%emt 0:00:15]} Ba5 {[%emt 0:00:14]} 46. Kd1 {[%emt 0:00:05]} Kg6 {[%emt 0:00:08]} 47. c3 {[%emt 0:00:14]} dxc3 {[%emt 0:00:11]} 48. Bc1 {[%emt 0:00:01]} h4 {[%emt 0:00:09]} 49. Kc2 {[%emt 0:00:03]} h3 {[%emt 0:00:13]} 50. Be3 {[%emt 0:00:05]} Bb6 {[%emt 0:00:00]} 51. Kxc3 {[%emt 0:00:20]} Kf5 {[%emt 0:00:22]} 52. Kc2 {[%emt 0:00:04]} f6 {[%emt 0:00:07]} 53. exf6 {[%emt 0:00:07]} Kxf6 {[%emt 0:00:01]} 54. Kd2 {[%emt 0:00:12]} Kf5 {[%emt 0:00:14]} 55. Ke2 {[%emt 0:00:01]} Ba7 {[%emt 0:00:07]} 56. Bd2 {[%emt 0:00:18]} Bb8 {[%emt 0:00:07]} 57. Be3 {[%emt 0:00:28]} e5 {[%emt 0:00:06]} 58. fxe5 {[%emt 0:00:02]} Bxe5 {[%emt 0:00:01]} 59. Kf2 {[%emt 0:00:02]} Bd6 {[%emt 0:00:30]} 60. Kf1 {[%emt 0:00:12]} Be7 {[%emt 0:00:04]} 61. Ke2 {[%emt 0:00:06]} Bf8 {[%emt 0:00:01]} 62. Bg1 {[%emt 0:00:08]} Bd6 {[%emt 0:00:07]} 63. Kd2 {[%emt 0:00:11]} Be5 {[%emt 0:00:18]} 64. Kc2 {[%emt 0:00:11]} Ke6 {[%emt 0:00:06]} 65. Kc1 {[%emt 0:00:13]} Kd6 {[%emt 0:00:01]} 66. Kc2 {[%emt 0:00:03]} Kd7 {[%emt 0:00:38]} 67. Kc1 {[%emt 0:00:03]} Ke6 {[%emt 0:00:00]} 68. Kc2 {[%emt 0:00:01]} Kd6 {[%emt 0:00:01]} 69. Kc1 {[%emt 0:00:05]} Ba1 {[%emt 0:00:18]} 70. Kb1 {[%emt 0:00:03]} Bd4 {[%emt 0:00:20]} 1/2-1/2

[Event "FIDE Open World Rapid 2024"]
[Site "New York"]
[Date "2024.12.27"]
[Round "7.36"]
[White "Gaehwiler, Gabriel"]
[Black "Rasulov, Vugar"]
[Result "1/2-1/2"]
[ECO "C45"]
[WhiteElo "2392"]
[BlackElo "2504"]
[Annotator "ChessBase"]
[PlyCount "117"]
[EventDate "2024.12.14"]
[EventType "swiss"]
[EventCountry "USA"]
[SourceTitle "playchess.com"]
[Source "ChessBase"]
[SourceQuality "1"]
[TimeControl "900+10"]

1. e4 {[%emt 0:00:03]} e5 {[%emt 0:00:01]} 2. Nf3 {[%emt 0:00:02]} Nc6 {[%emt 0:00:02]} 3. d4 {[%emt 0:00:06]} exd4 {[%emt 0:00:03]} 4. Nxd4 {[%emt 0:00:02]} Bc5 {[%emt 0:00:02]} 5. Be3 {[%emt 0:00:28]} Qf6 {[%emt 0:00:07]} 6. c3 {[%emt 0:00:10]} Nge7 {[%emt 0:00:02]} 7. Nf5 {[%emt 0:00:33]} Bb6 {[%emt 0:00:40]} 8. Bxb6 {[%emt 0:00:36]} axb6 {[%emt 0:00:02]} 9. Ne3 {[%emt 0:00:17]} d6 {[%emt 0:01:18]} 10. Nd2 {[%emt 0:00:09]} O-O {[%emt 0:00:17]} 11. Bd3 {[%emt 0:03:26]} Ne5 {[%emt 0:02:42]} 12. Bc2 {[%emt 0:00:16]} Qf4 {[%emt 0:01:51]} 13. g3 {[%emt 0:00:34]} Qh6 {[%emt 0:00:02]} 14. f4 {[%emt 0:00:10]} f5 {[%emt 0:00:31]} 15. Qe2 {[%emt 0:01:21]} N5c6 {[%emt 0:00:32]} 16. O-O {[%emt 0:00:50]} g6 {[%emt 0:00:20]} 17. exf5 {[%emt 0:00:45]} Nxf5 {[%emt 0:00:17]} 18. Nxf5 {[%emt 0:00:06]} Bxf5 {[%emt 0:00:13]} 19. Bxf5 {[%emt 0:00:20]} gxf5 {[%emt 0:00:01]} 20. Rae1 {[%emt 0:00:10]} Qg6 {[%emt 0:00:11]} 21. a3 {[%emt 0:00:26]} Rae8 {[%emt 0:00:11]} 22. Qd3 {[%emt 0:00:06]} Kh8 {[%emt 0:01:04]} 23. Nf3 {[%emt 0:00:07]} Qf6 {[%emt 0:00:24]} 24. Nh4 {[%emt 0:00:09]} Re7 {[%emt 0:01:55]} 25. Rxe7 {[%emt 0:00:17]} Nxe7 {[%emt 0:00:01]} 26. Re1 {[%emt 0:00:04]} Ng6 {[%emt 0:00:19]} 27. Nf3 {[%emt 0:00:33]} Rf7 {[%emt 0:00:47]} 28. Kf2 {[%emt 0:00:27]} Re7 {[%emt 0:00:29]} 29. Nd4 {[%emt 0:00:59]} Rxe1 {[%emt 0:00:30]} 30. Kxe1 {[%emt 0:00:02]} Ne7 {[%emt 0:00:01]} 31. Qb5 {[%emt 0:00:38]} c5 {[%emt 0:00:24]} 32. Ne2 {[%emt 0:00:35]} Qe6 {[%emt 0:01:22]} 33. Qxb6 {[%emt 0:00:29]} Qd5 {[%emt 0:00:27]} 34. Qd8+ {[%emt 0:00:20]} Ng8 {[%emt 0:00:01]} 35. Kf2 {[%emt 0:00:15]} Kg7 {[%emt 0:00:27]} 36. Qd7+ {[%emt 0:00:37]} Kg6 {[%emt 0:00:02]} 37. Qe8+ {[%emt 0:00:05]} Kg7 {[%emt 0:00:01]} 38. Qd7+ {[%emt 0:00:45]} Kg6 {[%emt 0:00:02]} 39. Qe8+ {[%emt 0:00:02]} Kg7 {[%emt 0:00:01]} 40. Qd7+ {[%emt 0:00:04]} Kh8 {[%emt 0:00:08]} 41. c4 {[%emt 0:00:21]} Qd3 {[%emt 0:00:05]} 42. Qf7 {[%emt 0:00:49]} Qc2 {[%emt 0:00:45]} 43. b4 {[%emt 0:00:05]} b6 {[%emt 0:00:16]} 44. bxc5 {[%emt 0:00:39]} bxc5 {[%emt 0:00:03]} 45. h3 {[%emt 0:00:08]} h6 {[%emt 0:00:27]} 46. g4 {[%emt 0:00:08]} Qb3 {[%emt 0:00:41]} 47. gxf5 {[%emt 0:00:45]} Qxh3 {[%emt 0:00:19]} 48. Ng3 {[%emt 0:00:06]} Qh2+ {[%emt 0:01:00]} 49. Kf3 {[%emt 0:00:02]} Qb2 {[%emt 0:00:09]} 50. Nh5 {[%emt 0:00:24]} Qxa3+ {[%emt 0:00:30]} 51. Kg4 {[%emt 0:00:31]} Qa1 {[%emt 0:00:11]} 52. f6 {[%emt 0:00:22]} Qd1+ {[%emt 0:00:01]} 53. Kh4 {[%emt 0:01:03]} Qh1+ {[%emt 0:00:04]} 54. Kg4 {[%emt 0:00:09]} Qd1+ {[%emt 0:00:09]} 55. Kg3 {[%emt 0:00:30]} Qg1+ {[%emt 0:00:22]} 56. Kf3 {[%emt 0:00:12]} Qf1+ {[%emt 0:00:24]} 57. Kg3 {[%emt 0:00:21]} Qg1+ {[%emt 0:00:02]} 58. Kf3 {[%emt 0:00:05]} Qf1+ {[%emt 0:00:01]} 59. Kg3 {[%emt 0:00:30]} 1/2-1/2